[Event "74th Superior Womens Argentine-ch 2023"]
[Site "Buenos Aires"]
[Date "2023.11.28"]
[Round "9.5"]
[White "Nejanky, Maisa"]
[Black "Semprevivo, Florencia"]
[Result "1-0"]
[ECO "B82"]
[WhiteElo "1951"]
[BlackElo "1871"]
[Annotator "NA RC"]
[PlyCount "43"]
[EventDate "2023.11.20"]
[EventType "swiss"]
[EventCountry "ARG"]
[SourceTitle "playchess.com"]
[Source "ChessBase"]
[SourceQuality "1"]
[TimeControl "5400+30"]

1. e4 {[%emt 0:12:15]} c5 {[%emt 0:00:11]} 2. Nc3 {[%emt 0:00:42]} d6 {[%emt 0:00:25]} 3. Nf3 {[%emt 0:01:47]} Nf6 {[%emt 0:00:36]} 4. d4 {[%emt 0:00:51]} cxd4 {[%emt 0:00:40]} 5. Nxd4 {[%emt 0:00:04]} a6 {[%emt 0:00:31]} 6. a4 {[%emt 0:03:40]} e6 {[%emt 0:01:30]} 7. f4 {[%emt 0:01:48]} Be7 {[%emt 0:01:27]} 8. Bd3 {[%emt 0:00:55]} Nc6 {[%emt 0:02:52]} 9. Nb3 {[%emt 0:02:56]} b6 {[%emt 0:00:59]} 10. O-O {[%emt 0:00:57]} O-O {[%emt 0:01:26]} 11. Qf3 {[%emt 0:02:14]} Qc7 {[%emt 0:01:40]} 12. g4 {[%emt 0:03:31]} Bb7 {[%emt 0:02:12]} 13. g5 {[%emt 0:00:27]} Nd7 {[%emt 0:02:02]} 14. Be3 {[%emt 0:06:27]} Nb4 {[%emt 0:02:06]} 15. Qh3 {[%emt 0:02:29]} Rfe8 {[%emt 0:06:34]} 16. f5 {[%emt 0:09:18]} exf5 {[%emt 0:05:19]} 17. exf5 {[%emt 0:01:43]} Bf8 {[%emt 0:01:06]} 18. g6 {[%emt 0:03:06]} fxg6 {[%emt 0:02:47]} 19. fxg6 {[%emt 0:00:07]} h6 {[%emt 0:00:46]} 20. Bf5 {[%emt 0:19:40]} Bc8 {[%emt 0:07:53]} 21. Be6+ {[%emt 0:03:03]} Kh8 {[%emt 0:01:24]} 22. Rf7 {[%emt 0:02:09]} 1-0